fUST/lending_fUST_20240814
["ID","MTS","AMOUNT","RATE_DAILY","PERIOD"]
[334906960,1723635084523,-229.694717,0.000198,2]
[334906961,1723635084534,-229.694717,0.000198,2]
[334906962,1723635084544,-229.694717,0.000198,2]
[334906963,1723635084556,-504.564442,0.000198,2]
[334906964,1723635084567,-504.564442,0.000198,2]
[334906965,1723635084576,-504.564442,0.000198,2]
[334906966,1723635084586,-504.564442,0.000198,2]
[334906967,1723635084595,-825.200145,0.000198,2]
[334906968,1723635084605,-504.564442,0.000198,2]
[334906969,1723635084615,-825.200145,0.000198,2]
[334906970,1723635084624,-825.200145,0.000198,2]
[334906971,1723635084634,-504.564442,0.000198,2]
[334906972,1723635084645,-825.200145,0.000198,2]
[334906973,1723635084654,-151.0,0.000198,2]
[334906974,1723635084665,-825.200145,0.000198,2]
[334906975,1723635084675,-151.0,0.000198,2]
[334906976,1723635084686,-825.200145,0.000198,2]
[334906977,1723635084696,-151.0,0.000198,2]
[334906978,1723635084705,-2717.504076,0.000198,2]
[334906979,1723635084715,-2717.504076,0.000198,2]
[334906980,1723635084724,-2717.504076,0.000198,2]
[334906981,1723635084737,-2717.504076,0.000198,2]
[334906982,1723635084747,-316.144537,0.000198,2]
[334906983,1723635084757,-316.144537,0.000198,2]
[334906984,1723635084767,-316.144537,0.000198,2]
[334906985,1723635084778,-1247.112199,0.000198,2]
[334906986,1723635084788,-1247.112199,0.000198,2]
[334906987,1723635084801,-1247.112199,0.000198,2]
[334906988,1723635084810,-316.144537,0.000198,2]
[334906989,1723635084822,-316.144537,0.000198,2]
[334906990,1723635084832,-316.144537,0.000198,2]
[334906991,1723635084842,-1247.112199,0.000198,2]
[334906992,1723635084853,-1247.112199,0.000198,2]
[334906993,1723635084862,-1247.112199,0.000198,2]
[334906994,1723635084872,-151.0,0.000198,2]
[334906995,1723635084882,-151.0,0.000198,2]
[334906996,1723635084892,-151.0,0.000198,2]
[334906997,1723635084902,-1083.390094,0.000198,2]
[334906998,1723635084912,-1083.390094,0.000198,2]
[334906999,1723635084922,-1083.390094,0.000198,2]
[334907000,1723635084934,-1083.390094,0.000198,2]
[334907001,1723635084945,-1083.390094,0.000198,2]
[334907002,1723635084954,-1083.390094,0.000198,2]
[334907003,1723635084966,-1194.731559,0.000198,2]
[334907004,1723635084977,-1194.731559,0.000198,2]
[334907005,1723635084987,-1194.731559,0.000198,2]
[334907006,1723635084996,-1194.731559,0.000198,2]
[334907007,1723635085005,-1194.731559,0.000198,2]
[334907008,1723635085015,-1194.73155859,0.000198,2]
[334907009,1723635085025,-582.76278,0.000198,2]
[334907010,1723635085034,-582.76278,0.000198,2]
[334907011,1723635085043,-582.76278,0.000198,2]
[334907012,1723635085052,-151.0,0.000198,2]
[334907013,1723635085062,-151.0,0.000198,2]
[334907014,1723635085071,-151.0,0.000198,2]
[334907015,1723635085080,-582.76278,0.000198,2]
[334907016,1723635085089,-582.76278,0.000198,2]
[334907017,1723635085099,-11560.45439022,0.000199,15]
[334907018,1723635085108,-115602.68885296,0.0001999,2]
[334907019,1723635085117,-178930.31114704,0.0001999,2]
[334907020,1723635085126,-151.0,0.0001999,2]
[334907021,1723635085135,-247.111536,0.0001999,2]
[334907022,1723635085145,-247.111536,0.0001999,2]
[334907023,1723635085158,-151.0,0.0001999,2]
[334907024,1723635085167,-151.0,0.0001999,2]
[334907025,1723635085177,-151.0,0.0001999,2]
[334907026,1723635085188,-1560.315808,0.0001999,2]
[334907027,1723635085198,-1560.315808,0.0001999,2]
[334907028,1723635085208,-151.0,0.0001999,2]
[334907029,1723635085219,-185.862977,0.0001999,2]
[334907030,1723635085231,-185.862977,0.0001999,2]
[334907031,1723635085243,-151.0,0.0001999,2]
[334907032,1723635085256,-192.591101,0.0001999,2]
[334907033,1723635085267,-192.591101,0.0001999,2]
[334907034,1723635085279,-219.14014,0.0001999,2]
[334907035,1723635085289,-219.140137,0.0001999,2]
[334907036,1723635085298,-359.600551,0.0001999,2]
[334907037,1723635085307,-359.600557,0.0001999,2]
[334907038,1723635085317,-1612.303288,0.0001999,2]
[334907039,1723635085327,-1612.303294,0.0001999,2]
[334907040,1723635085337,-692.822133,0.0001999,2]
[334907041,1723635085347,-692.822133,0.0001999,2]
[334907042,1723635085356,-1328.988569,0.0001999,2]
[334907043,1723635085365,-1328.988569,0.0001999,2]
[334907044,1723635085375,-2603.076263,0.0001999,2]
[334907045,1723635085385,-2603.076263,0.0001999,2]
[334907046,1723635085395,-451.064135,0.0001999,2]
[334907047,1723635085405,-451.064135,0.0001999,2]
[334907048,1723635085414,-229.694717,0.0001999,2]
[334907049,1723635085424,-229.694718,0.0001999,2]
[334907050,1723635085435,-504.564442,0.0001999,2]
[334907051,1723635085445,-825.200145,0.0001999,2]
[334907052,1723635085455,-504.56443539,0.0001999,2]
[334907053,1723635085465,-825.200154,0.0001999,2]
[334907054,1723635085475,-151.0,0.0001999,2]
[334907055,1723635085484,-2717.504076,0.0001999,2]
[334907056,1723635085562,-2717.504076,0.0001999,2]
[334907057,1723635085572,-316.144537,0.0001999,2]
[334907058,1723635085583,-1247.112199,0.0001999,2]
[334907059,1723635085592,-316.144528,0.0001999,2]
[334907060,1723635085603,-1247.112206,0.0001999,2]
[334907061,1723635085612,-151.0,0.0001999,2]
[334907062,1723635085622,-1083.390094,0.0001999,2]
[334907063,1723635085632,-1083.390093,0.0001999,2]
[334907064,1723635085642,-1856.91833467,0.00019991,2]
[334907065,1723635085651,-465.00000357,0.00019991,2]
[334907066,1723635085661,-21079.40214384,0.0002,2]
[334907067,1723635085670,-1393.14395153,0.0002,2]
[334907068,1723635085681,-294.42204794,0.0002,2]
[334907069,1723635085691,-427.3467713,0.0002,2]
[334907070,1723635085700,-154.76012181,0.0002,2]
[334907071,1723635085710,-435.0,0.0002,2]
[334907072,1723635085719,-4108.99718765,0.0002,2]
[334907073,1723635085728,-171.57583552,0.0002,2]
[334907074,1723635085737,-154.79103211,0.0002,2]
[334907075,1723635085746,-154.80649189,0.0002,2]
[334907076,1723635085756,-1856.76379079,0.0002,2]
[334907077,1723635085766,-4286.97531671,0.0002,2]
[334907078,1723635085775,-4185.77752582,0.0002,2]
[334907079,1723635085785,-746.76675486,0.0002,14]
[334907080,1723635085794,-154.77557542,0.0002,2]
[334907081,1723635085804,-10498.71185787,0.0002,2]
[334907082,1723635085813,-3123.62998797,0.0002,2]
[334907083,1723635085823,-500.0,0.0002,2]
[334907084,1723635085833,-212.2652668,0.0002,10]
[334907085,1723635085843,-5322.67236905,0.0002,2]
[334907086,1723635085853,-3020.58,0.0002,2]
[334907087,1723635085862,-156.55065723,0.0002,2]
[334907088,1723635085871,-175.03099147,0.0002,2]
[334907089,1723635085880,-182.5,0.0002,2]
[334907090,1723635085890,-188.24987541,0.0002,2]
[334907091,1723635085900,-53132.32010089,0.0002,2]
[334907092,1723635085910,-154.74467129,0.0002,2]
[334907093,1723635085919,-20862.21277174,0.0002,2]
[334907094,1723635085931,-789.29112926,0.0002,30]
[334907095,1723635085950,-165.02366484,0.0002,2]
[334907096,1723635085960,-174.50847196,0.0002,2]
[334907097,1723635085971,-285.30904348,0.0002,2]
[334907098,1723635085981,-159.11827332,0.0002,2]
[334907099,1723635085991,-20066.666,0.0002,4]
[334907100,1723635086000,-505.0,0.0002,2]
[334907101,1723635086009,-506.0,0.0002,2]
[334907102,1723635086019,-407.94439253,0.0002,2]
[334907103,1723635086028,-12900.0,0.0002,2]
[334907104,1723635086039,-300.0,0.0002,2]
[334907105,1723635086048,-1156.20796232,0.0002,2]
[334907106,1723635086058,-151.0,0.0002,2]
[334907107,1723635086068,-729.55919794,0.0002,2]
[334907108,1723635086077,-752.49001413,0.0002,2]
[334907109,1723635086087,-151.0,0.0002,2]
[334907110,1723635086098,-1148.47772742,0.0002,2]
[334907111,1723635086110,-748.23071346,0.0002,2]
[334907112,1723635086131,-1560.315808,0.0002,2]
[334907113,1723635086147,-1560.315803,0.0002,2]
[334907114,1723635086170,-464.1701761,0.0002,2]
[334907115,1723635086192,-151.0,0.0002,2]
[334907116,1723635086209,-185.862977,0.0002,2]
[334907117,1723635086227,-185.862986,0.0002,2]
[334907118,1723635086245,-604.8849472,0.0002,2]
[334907119,1723635086264,-500.91118181,0.0002,2]
[334907120,1723635086283,-640.20019448,0.0002,2]
[334907121,1723635086300,-10000.0,0.0002,2]
[334907122,1723635086314,-10000.0,0.0002,2]
[334907123,1723635086333,-10000.0,0.0002,2]
[334907124,1723635086349,-10000.0,0.0002,2]
[334907125,1723635086366,-10000.0,0.0002,2]
[334907126,1723635086381,-10000.0,0.0002,2]
[334907127,1723635086396,-17577.33532723,0.0002,2]
[334907128,1723635086412,-1809.19435635,0.0002,2]
[334907129,1723635086426,-590.60785314,0.0002,2]
[334907130,1723635086443,-1869.34154382,0.0002,2]
[334907131,1723635086458,-1086.84800483,0.0002,2]
[334907132,1723635086473,-151.28821919,0.0002,2]
[334907133,1723635086490,-150.0,0.0002,2]
[334907134,1723635086504,-751.36148087,0.0002,2]
[334907135,1723635086520,-671.4533134,0.0002,2]
[334907136,1723635086535,-788.9117867,0.0002,2]
[334907137,1723635086550,-692.822133,0.0002,2]
[334907138,1723635086564,-692.822126,0.0002,2]
[334907139,1723635086579,-867.51211318,0.0002,2]
[334907140,1723635086594,-1328.988569,0.0002,2]
[334907141,1723635086609,-520.30825937,0.0002,2]
[334907142,1723635086622,-1328.988576,0.0002,2]
[334907143,1723635086639,-876.28531176,0.0002,2]
[334907144,1723635086654,-155.21083758,0.0002,2]
[334907145,1723635086669,-2603.076263,0.0002,2]
[334907146,1723635086684,-2603.076269,0.0002,2]
[334907147,1723635086698,-3031.08763168,0.0002,2]
[334907148,1723635086713,-451.064135,0.0002,2]
[334907149,1723635086729,-4317.02374229,0.0002,2]
[334907150,1723635086745,-451.064137,0.0002,2]
[334907151,1723635086760,-745.84409407,0.0002,2]
[334907152,1723635086776,-802.0149058,0.0002,2]
[334907153,1723635086793,-1203.08895991,0.0002,2]
[334907154,1723635086809,-735.80145305,0.0002,2]
[334907155,1723635086825,-516.28216478,0.0002,2]
[334907156,1723635086840,-709.90874448,0.0002,2]
[334907157,1723635086855,-2717.504076,0.0002,2]
[334907158,1723635086870,-513.8530355,0.0002,2]
[334907159,1723635086884,-3876.79473648,0.0002,2]
[334907160,1723635086900,-2717.504086,0.0002,2]
[334907161,1723635086915,-526.53325651,0.0002,2]
[334907162,1723635086931,-215.04561128,0.0002,2]
[334907163,1723635086946,-609.32755769,0.0002,2]
[334907164,1723635086962,-1595.64559964,0.0002,2]
[334907165,1723635086976,-1000.0,0.0002,2]
[334907166,1723635086990,-886.40476571,0.0002,2]
[334907167,1723635087005,-541.43565572,0.0002,2]
[334907168,1723635087113,-504.34442286,0.0002,2]
[334907169,1723635087123,-516.04663021,0.0002,2]
[334907170,1723635087134,-504.34442286,0.000202,2]
[334907171,1723635087144,-1645.356255,0.0002028,7]
[334907172,1723635087158,-160.0,0.00020341,8]
[334907173,1723635087169,-146813.0,0.00020377,2]
[334907174,1723635087180,-151.0,0.00020377,2]
[334907175,1723635087190,-247.111536,0.00020377,2]
[334907176,1723635087202,-247.11154,0.00020377,2]
[334907177,1723635087212,-504.34442286,0.000204,2]
[334907178,1723635087223,-1383.88476824,0.00020498,12]
[334907179,1723635087232,-13525.88442641,0.000205,2]
[334907180,1723635087242,-21650.32790375,0.00020558,10]
[334907181,1723635087253,-504.34442286,0.000206,2]
[334907182,1723635087263,-4251.43990034,0.0002066,7]
[334907183,1723635087275,-646.968636,0.00020707,2]
[334907184,1723635087284,-712.5,0.00020707,2]
[334907185,1723635087295,-504.34442286,0.000208,2]
[334907186,1723635087304,-150.0,0.00020869,2]
[334907187,1723635087314,-160.0,0.00020895,9]
[334907188,1723635087324,-150.0,0.00020932,2]
[334907189,1723635087335,-520.0,0.00020932,2]
[334907190,1723635087348,-1413.0,0.00020932,2]
[334907191,1723635087357,-465.00000018,0.00020991,2]
[334907192,1723635087368,-2605.98976067,0.00020999,2]
[334907193,1723635087378,-10000.0,0.00021,5]
[334907194,1723635087388,-232.82776921,0.00021,2]
[334907195,1723635087398,-258.35383551,0.00021,2]
[334907196,1723635087409,-10138.97492704,0.00021,2]
[334907197,1723635087418,-5706.61477585,0.00021,2]
[334907198,1723635087430,-285.0,0.00021,2]
[334907199,1723635087441,-511.0,0.00021,2]
[334907200,1723635087451,-113889.39,0.00021,2]
[334907201,1723635087462,-1820.6,0.00021,2]
[334907202,1723635087472,-300.0,0.00021,2]
[334907203,1723635087482,-3000.0,0.00021,2]
[334907204,1723635087492,-157.06653837,0.00021,2]
[334907205,1723635087502,-150.0,0.00021,2]
[334907206,1723635087512,-3000.0,0.0002101,2]
[334907207,1723635087523,-3000.0,0.0002102,2]
[334907208,1723635087534,-3000.0,0.0002103,2]
[334907209,1723635087545,-3000.0,0.0002104,2]
[334907210,1723635087555,-3000.0,0.0002105,2]
[334907211,1723635087565,-3000.0,0.0002106,2]
[334907212,1723635087576,-3000.0,0.0002107,2]
[334907213,1723635087586,-3000.0,0.0002108,2]
[334907214,1723635087595,-3000.0,0.0002109,2]
[334907215,1723635087605,-3000.0,0.000211,2]
[334907216,1723635087615,-3000.0,0.0002111,2]
[334907217,1723635087624,-3000.0,0.0002112,2]
[334907218,1723635087634,-3000.0,0.0002113,2]
[334907219,1723635087643,-3000.0,0.0002114,2]
[334907220,1723635087653,-3000.0,0.0002115,2]
[334907221,1723635087662,-3000.0,0.0002116,2]
[334907222,1723635087672,-3000.0,0.0002117,2]
[334907223,1723635087682,-3000.0,0.0002118,2]
[334907224,1723635087692,-3000.0,0.0002119,2]
[334907225,1723635087702,-504.01637239,0.000212,2]
[334907226,1723635087712,-319.26961552,0.000212,30]
[334907227,1723635087722,-3000.0,0.000212,2]
[334907228,1723635087731,-3000.0,0.0002121,2]
[334907229,1723635087740,-3000.0,0.0002122,2]
[334907230,1723635087750,-3000.0,0.0002123,2]
[334907231,1723635087760,-3000.0,0.0002124,2]
[334907232,1723635087770,-3000.0,0.0002125,2]
[334907233,1723635087780,-3000.0,0.0002126,2]
[334907234,1723635087790,-3000.0,0.0002127,2]
[334907235,1723635087799,-3000.0,0.0002128,2]
[334907236,1723635087810,-3000.0,0.0002129,2]
[334907237,1723635087820,-3000.0,0.000213,2]
[334907238,1723635087829,-3000.0,0.0002131,2]
[334907239,1723635087839,-3000.0,0.0002132,2]
[334907240,1723635087849,-3000.0,0.0002133,2]
[334907241,1723635087859,-3000.0,0.0002134,2]
[334907242,1723635087869,-3000.0,0.0002135,2]
[334907243,1723635087880,-1345.2413753,0.00021353,2]
[334907244,1723635087890,-3000.0,0.0002136,2]
[334907245,1723635087901,-3000.0,0.0002137,2]
[334907246,1723635087912,-3000.0,0.0002138,2]
[334907247,1723635087923,-3000.0,0.0002139,2]
[334907248,1723635087933,-3000.0,0.000214,2]
[334907249,1723635087944,-3000.0,0.0002141,2]
[334907250,1723635087953,-3000.0,0.0002142,2]
[334907251,1723635087963,-3000.0,0.0002143,2]
[334907252,1723635087972,-3000.0,0.0002144,2]
[334907253,1723635087982,-3000.0,0.0002145,2]
[334907254,1723635087992,-160.0,0.0002145,10]
[334907255,1723635088003,-166.79425636,0.0002145,5]
[334907256,1723635088013,-3000.0,0.0002146,2]
[334907257,1723635088023,-4291.562161,0.0002147,2]
[334907258,1723635088033,-872.55,0.000215,2]
[334907259,1723635088044,-1400.0,0.00021879,2]
[334907260,1723635088056,-5000.0,0.000219,18]
[334907261,1723635088066,-152.46,0.000219,31]
[334907262,1723635088076,-152.46,0.000219,31]
[334907263,1723635088088,-152.46,0.000219,31]
[334907264,1723635088098,-1191.31244115,0.00021917,3]
[334907265,1723635088108,-1000.0,0.00021917,5]
[334907266,1723635088119,-1000.0,0.00021917,5]
[334907267,1723635088130,-1000.0,0.00021917,5]
[334907268,1723635088141,-1002.03121581,0.00021917,5]
[334907269,1723635088156,-243.029665,0.00021918,2]
[334907270,1723635088166,-243.029665,0.00021918,2]
[334907271,1723635088176,-243.029665,0.00021918,2]
[334907272,1723635088187,-243.029665,0.00021918,2]
[334907273,1723635088198,-243.029665,0.00021918,2]
[334907274,1723635088208,-243.029665,0.00021918,2]
[334907275,1723635088220,-243.029665,0.00021918,2]
[334907276,1723635088231,-243.029665,0.00021918,2]
[334907277,1723635088242,-243.029665,0.00021918,2]
[334907278,1723635088253,-243.029665,0.00021918,2]
[334907279,1723635088264,-243.029665,0.00021918,2]
[334907280,1723635088274,-243.029665,0.00021918,2]
[334907281,1723635088284,-243.029665,0.00021918,2]
[334907282,1723635088294,-243.029665,0.00021918,2]
[334907283,1723635088304,-243.029665,0.00021918,2]
[334907284,1723635088315,-243.029665,0.00021918,2]
[334907285,1723635088325,-243.029665,0.00021918,2]
[334907286,1723635088335,-243.029665,0.00021918,2]
[334907287,1723635088345,-243.029665,0.00021918,2]
[334907288,1723635088354,-243.029658,0.00021918,2]
[334907289,1723635088367,-23170.3674719,0.00021918,2]
[334907290,1723635088376,-1013.0,0.00021918,5]
[334907291,1723635088386,-160.0,0.00021918,2]
[334907292,1723635088397,-163.55226339,0.00021918,2]
[334907293,1723635088407,-160.0,0.00021918,2]
[334907294,1723635088417,-308.49311998,0.00022,2]
[334907295,1723635088427,-1547.08,0.00022,2]
[334907296,1723635088438,-4354.24279105,0.00022,30]
[334907297,1723635088447,-267.53241991,0.00022,2]
[334907298,1723635088458,-163.87291139,0.00022,2]
[334907299,1723635088468,-400.0,0.00022,2]
[334907300,1723635088478,-302.57643837,0.00022,2]
[334907301,1723635088489,-199.0,0.00022,2]
[334907302,1723635088499,-302.57643837,0.00022,2]
[334907303,1723635088509,-516.0,0.00022,2]
[334907304,1723635088521,-465.00000001,0.0002204,2]
[334907305,1723635088532,-1693.57675753,0.0002217,2]
[334907306,1723635088544,-516.0,0.00022192,2]
[334907307,1723635088554,-302.57643837,0.0002222,2]
[334907308,1723635088567,-302.57643837,0.0002222,2]
[334907309,1723635088577,-1158.06004732,0.000223,2]
[334907310,1723635088587,-302.57643837,0.0002244,2]
[334907311,1723635088597,-302.57643837,0.0002244,2]
[334907312,1723635088608,-1856.91833467,0.00022445,2]
[334907313,1723635088618,-800.02,0.00022465,3]
[334907314,1723635088627,-287.62089685,0.0002266,2]
[334907315,1723635088638,-302.57643837,0.0002266,2]
[334907316,1723635088647,-800.02,0.00022739,3]
[334907317,1723635088657,-1301947.38353208,0.000228,10]
[334907318,1723635088667,-302.57643837,0.0002288,2]
[334907319,1723635088677,-239.3373854,0.00023,2]
[334907320,1723635088687,-11390.88236135,0.00023,2]
[334907321,1723635088698,-1751.86092314,0.00023,2]
[334907322,1723635088708,-185.99865965,0.00023,2]
[334907323,1723635088718,-154.77557542,0.00023,2]
[334907324,1723635088728,-400.0,0.00023,2]
[334907325,1723635088738,-500.0,0.00023,2]
[334907326,1723635088750,-500.0,0.00023,2]
[334907327,1723635088761,-500.0,0.00023,2]
[334907328,1723635088772,-494.69130146,0.00023,2]
[334907329,1723635088781,-157.06653837,0.00023,2]
[334907330,1723635088792,-500.0,0.00023004,2]
[334907331,1723635088805,-800.02,0.00023013,3]
[334907332,1723635088815,-199.0,0.00023014,2]
[334907333,1723635088825,-516.0,0.00023014,2]
[334907334,1723635088837,-5100.0,0.00023047,2]
[334907335,1723635088847,-2500.0,0.00023077,2]
[334907336,1723635088857,-1600.0,0.00023095,2]
[334907337,1723635088867,-152.46,0.000231,31]
[334907338,1723635088877,-453.86465756,0.000231,4]
[334907339,1723635088888,-500.0,0.00023112,2]
[334907340,1723635088898,-5100.0,0.0002314,2]
[334907341,1723635088909,-465.0,0.00023142,2]
[334907342,1723635088921,-5100.0,0.00023148,2]
[334907343,1723635088932,-5400.0,0.00023178,2]
[334907344,1723635088945,-499.3,0.00023179,2]
[334907345,1723635088955,-1600.0,0.00023194,2]
[334907346,1723635088965,-113889.39,0.000232,14]
[334907347,1723635088975,-1820.6,0.000232,7]
[334907348,1723635088986,-500.0,0.00023214,2]
[334907349,1723635088996,-2500.0,0.00023218,2]
[334907350,1723635089007,-1600.0,0.00023218,2]
[334907351,1723635089017,-2500.0,0.00023232,2]
[334907352,1723635089028,-190.0,0.00023237,2]
[334907353,1723635089038,-800.02,0.00023287,3]
[334907354,1723635089047,-1345.2413753,0.00023292,2]
[334907355,1723635089057,-201.150846,0.000233,15]
[334907356,1723635089067,-453.86465756,0.0002332,4]
[334907357,1723635089077,-788.00599928,0.00023334,2]
[334907358,1723635089088,-5400.0,0.00023369,2]
[334907359,1723635089098,-500.0,0.00023385,2]
[334907360,1723635089108,-1600.0,0.00023452,2]
[334907361,1723635089118,-5400.0,0.00023453,2]
[334907362,1723635089129,-5400.0,0.00023464,2]
[334907363,1723635089140,-500.0,0.00023468,2]
[334907364,1723635089153,-5400.0,0.0002348,2]
[334907365,1723635089165,-500.0,0.0002349,2]
[334907366,1723635089175,-500.0,0.0002351,2]
[334907367,1723635089186,-2500.0,0.00023522,2]
[334907368,1723635089196,-453.86465756,0.0002354,4]
[334907369,1723635089206,-397.94,0.00023548,2]
[334907370,1723635089215,-11145.45760162,0.0002355,2]
[334907371,1723635089226,-500.0,0.00023552,2]
[334907372,1723635089236,-800.02,0.00023561,3]
[334907373,1723635089246,-2500.0,0.00023607,2]
[334907374,1723635089256,-2500.0,0.00023623,2]
[334907375,1723635089266,-500.0,0.00023647,2]
[334907376,1723635089275,-2500.0,0.00023723,2]
[334907377,1723635089285,-500.0,0.00023744,2]
[334907378,1723635089295,-500.0,0.00023753,2]
[334907379,1723635089304,-453.86465756,0.0002376,4]
[334907380,1723635089314,-5100.0,0.00023766,2]
[334907381,1723635089323,-872.55,0.000238,14]
[334907382,1723635089333,-5400.0,0.00023805,2]
[334907383,1723635089343,-5400.0,0.00023815,2]
[334907384,1723635089354,-800.02,0.00023835,3]
[334907385,1723635089364,-500.0,0.00023846,2]
[334907386,1723635089374,-5100.0,0.00023882,2]
[334907387,1723635089385,-2500.0,0.00023904,2]
[334907388,1723635089394,-1600.0,0.00023926,2]
[334907389,1723635089404,-150.0,0.00023932,2]
[334907390,1723635089413,-520.0,0.00023932,2]
[334907391,1723635089424,-1413.0,0.00023932,2]
[334907392,1723635089434,-453.86465757,0.0002398,4]
[334907393,1723635089444,-500.0,0.00023983,2]
[334907394,1723635089454,-318.67553622,0.00024,2]
[334907395,1723635089464,-39682.56485634,0.00024,3]
[334907396,1723635089474,-49813.02588729,0.00024,15]
[334907397,1723635089483,-5946.4283289,0.00024,15]
[334907398,1723635089493,-400.0,0.00024,2]
[334907399,1723635089504,-5400.0,0.00024038,2]
[334907400,1723635089514,-5100.0,0.00024064,2]
[334907401,1723635089524,-800.02,0.00024109,3]
[334907402,1723635089535,-1600.0,0.00024115,2]
[334907403,1723635089545,-500.0,0.00024127,2]
[334907404,1723635089554,-500.0,0.0002414,2]
[334907405,1723635089565,-952.89525665,0.00024143,2]
[334907406,1723635089574,-1600.0,0.00024146,2]
[334907407,1723635089676,-517.0,0.00024164,2]
[334907408,1723635089687,-5100.0,0.00024176,2]
[334907409,1723635089697,-5100.0,0.00024198,2]
[334907410,1723635089707,-152.46,0.000242,31]
[334907411,1723635089719,-1600.0,0.00024273,2]
[334907412,1723635089728,-465.0,0.00024299,2]
[334907413,1723635089740,-5100.0,0.00024302,2]
[334907414,1723635089750,-503.32049717,0.00024308,2]
[334907415,1723635089762,-2500.0,0.00024352,2]
[334907416,1723635089773,-800.02,0.00024383,3]
[334907417,1723635089783,-500.0,0.00024393,2]
[334907418,1723635089792,-1600.0,0.00024426,2]
[334907419,1723635089802,-5400.0,0.00024443,2]
[334907420,1723635089812,-2500.0,0.00024468,2]
[334907421,1723635089823,-500.0,0.00024471,2]
[334907422,1723635089833,-215.51088406,0.000245,2]
[334907423,1723635089842,-500.0,0.00024506,2]
[334907424,1723635089852,-2500.0,0.00024541,2]
[334907425,1723635089862,-500.0,0.00024576,2]
[334907426,1723635089873,-1600.0,0.0002458,2]
[334907427,1723635089883,-5100.0,0.00024644,2]
[334907428,1723635089893,-800.02,0.00024657,3]
[334907429,1723635089902,-500.0,0.00024657,2]
[334907430,1723635089911,-500.0,0.00024657,9]
[334907431,1723635089921,-500.0,0.00024657,16]
[334907432,1723635089931,-500.0,0.00024657,23]
[334907433,1723635089940,-500.0,0.00024657,30]
[334907434,1723635089950,-500.0,0.00024657,37]
[334907435,1723635089959,-500.0,0.00024657,2]
[334907436,1723635089970,-500.0,0.00024657,9]
[334907437,1723635089981,-287.89739983,0.00024657,16]
[334907438,1723635089991,-500.0,0.00024658,2]
[334907439,1723635090000,-200.0,0.00024658,2]
[334907440,1723635090011,-380.0,0.00024658,2]
[334907441,1723635090021,-200.0,0.00024658,15]
[334907442,1723635090030,-68627.5954529,0.00024699,3]
[334907443,1723635090040,-500.0,0.00024708,2]
[334907444,1723635090051,-5400.0,0.00024722,2]
[334907445,1723635090060,-1600.0,0.00024722,2]
[334907446,1723635090071,-5100.0,0.00024779,2]
[334907447,1723635090081,-2500.0,0.00024787,2]
[334907448,1723635090090,-785374.44165452,0.000248,10]
[334907449,1723635090100,-850000.99999999,0.000248,10]
[334907450,1723635090109,-837.67137008,0.00024804,2]
[334907462,1723635573795,197.0,7.8e-05,2]
[334907463,1723635586721,1881.10659917,0.000183,21]
[334907498,1723635825076,-670892.4786025,0.00025,60]
[334907499,1723635825101,-82829.97921426,0.00025,60]
[334907505,1723635849346,-400.0,0.00027,120]
[334907600,1723636014300,-1000.0,0.00030574,120]
[334907601,1723636014327,-5023.20705203,0.00030574,120]
[334907602,1723636014353,-1226.61,0.00030574,120]
[334907603,1723636014378,-532.5555634,0.00030574,120]